bitfinex/quotes_SOLUSD_20260120
["timestamp","ask_amount","ask_price","bid_price","bid_amount"]
[1768899615978,9.06666286,129.01,128.97,4.13396558]
[1768899616175,21.00826014,129.02,128.97,4.13396558]
[1768899617090,9.06666286,129.01,128.97,4.13396558]
[1768899617270,13.25727102,129.01,128.97,4.13396558]
[1768899618065,4.19060816,129.01,128.96,21.07396558]
[1768899618277,11.9419659,129.01,128.96,21.07396558]
[1768899618587,9.06666286,129.0,128.96,21.07396558]
[1768899618789,9.06666286,128.99,128.96,21.07396558]
[1768899618986,9.06666286,129.0,128.96,21.07396558]
[1768899619183,4.19060816,129.01,128.97,4.13396558]
[1768899619380,7.74991917,129.04,128.99,4.13396558]
[1768899619565,9.06666286,129.06,129.01,13.20062844]
[1768899620190,7.74893452,129.05,129.01,4.13396558]
[1768899620794,16.81559738,129.05,129.01,4.13396558]
[1768899621184,11.93954268,129.05,129.01,4.13396558]
[1768899621370,21.00620554,129.05,129.01,4.13396558]
[1768899621571,11.93954268,129.05,129.01,4.13396558]
[1768899621771,21.00620554,129.05,129.01,4.13396558]
[1768899621970,21.00620554,129.05,128.99,24.69247627]
[1768899621971,9.06666286,129.04,128.99,30.14062844]
[1768899622193,9.06666286,129.02,128.98,16.94]
[1768899622495,9.06666286,129.01,128.98,16.94]
[1768899622668,9.06666286,129.01,128.97,21.07396558]
[1768899622869,9.06666286,129.02,128.98,4.13396558]
[1768899623092,21.00768115,129.03,128.98,4.13396558]
[1768899624898,9.06666286,129.03,128.98,9.06666286]
[1768899625078,16.81664892,129.04,129.0,4.07612108]
[1768899626096,9.06666286,129.03,129.0,4.07612108]
[1768899626890,9.07356505,129.03,129.0,4.07612108]
[1768899627888,9.07356505,129.02,128.98,4.07612108]
[1768899628086,9.07356505,129.01,128.97,21.01612108]
[1768899628280,18.81,129.1,128.97,44.0779059]
[1768899628489,0.2,129.12,129.03,9.07356505]
[1768899628793,0.2,129.12,129.07,4.04343753]
[1768899628977,0.2,129.12,129.08,16.94]
[1768899629291,9.07356505,129.12,129.08,16.94]
[1768899629513,4.08425039,129.12,129.08,16.94]
[1768899630070,13.15781544,129.12,129.08,16.94]
[1768899630670,4.08425039,129.12,129.08,16.94]
[1768899630975,0.2,129.13,129.1,9.07356505]
[1768899631190,0.2,129.13,129.08,24.68694612]
[1768899631484,0.2,129.13,129.1,9.07356505]
[1768899631687,0.2,129.13,129.08,44.05478002]
[1768899631880,4.28425039,129.13,129.08,33.76051117]
[1768899632499,0.2,129.13,129.08,24.68694612]
[1768899632690,0.2,129.13,129.09,9.07356505]
[1768899632999,4.08425039,129.11,129.07,4.04343753]
[1768899633302,13.15781544,129.1,129.07,4.04343753]
[1768899633505,4.08425039,129.12,129.07,4.04343753]
[1768899633794,4.08425039,129.1,129.07,4.04343753]
[1768899634302,13.15781544,129.1,129.07,4.04343753]
[1768899634507,4.08425039,129.1,129.07,4.04343753]
[1768899634697,13.15781544,129.1,129.07,4.04343753]
[1768899634999,13.15781544,129.1,129.06,24.68785325]
[1768899635175,13.15781544,129.1,129.06,16.94]
[1768899635579,4.08425039,129.1,129.06,16.94]
[1768899635880,4.08425039,129.08,129.06,16.94]
[1768899636502,4.08425039,129.08,129.04,7.74908066]
[1768899636696,4.08425039,129.08,129.03,16.94]
[1768899636896,13.15781544,129.08,129.03,26.01356505]
[1768899637600,4.08425039,129.08,129.04,7.74928204]
[1768899637800,13.15781544,129.08,129.04,7.74928204]
[1768899637981,9.07356505,129.07,129.03,24.68989978]
[1768899638176,4.08425039,129.08,129.04,9.07356505]
[1768899638395,13.15781544,129.1,129.05,9.07356505]
[1768899638605,13.15781544,129.1,129.03,36.31462607]
[1768899638606,4.08425039,129.1,129.06,9.07356505]
[1768899639104,4.08425039,129.1,129.06,26.01356505]
[1768899640703,4.08425039,129.1,129.06,33.76173413]
[1768899641104,13.15781544,129.1,129.06,16.94]
[1768899641300,13.15781544,129.1,129.06,24.6883176]
[1768899641889,4.08425039,129.08,129.02,19.37592413]
[1768899642093,4.08425039,129.08,129.03,26.01356505]
[1768899642403,4.08425039,129.08,129.04,7.74948558]
[1768899642584,13.15781544,129.08,129.04,7.74948558]
[1768899644688,4.08425039,129.08,129.04,16.82305063]
[1768899645608,13.15781544,129.08,129.03,33.76342312]
[1768899645904,4.08425039,129.08,129.04,7.74953048]
[1768899646503,13.15781544,129.08,129.03,24.6897072]
[1768899646708,13.23419762,129.08,129.03,33.76327225]
[1768899646906,13.23419762,129.08,129.04,7.74945182]
[1768899648008,4.16063257,129.08,129.04,7.74945182]
[1768899648196,4.16063257,129.07,129.04,7.74945182]
[1768899648908,13.23419762,129.07,129.03,24.68991742]
[1768899649111,13.23419762,129.06,129.02,7.75047078]
[1768899649796,4.16063257,129.05,129.02,7.75047078]
[1768899650811,9.07356505,129.06,129.02,7.75047078]
[1768899651795,7.74682957,129.09,129.02,7.75047078]
[1768899652031,9.07356505,129.06,129.02,7.75047078]
[1768899652814,13.23419762,129.06,129.02,7.75047078]
[1768899653013,4.16063257,129.05,129.02,7.75047078]
[1768899654015,13.23419762,129.05,129.02,7.75047078]
[1768899654806,4.16063257,129.05,129.01,28.85168019]
[1768899655014,13.23419762,129.05,129.01,28.85168019]
[1768899655716,4.21188105,129.02,128.99,7.7520879]
[1768899656988,4.21188105,129.03,128.98,20.98721146]
[1768899657193,7.7483341,129.06,128.98,20.98721146]
[1768899657194,4.21188105,129.05,129.0,4.16063257]
[1768899657387,13.2854461,129.04,129.0,4.16063257]
[1768899657609,4.21188105,129.0,128.93,15.81136785]
[1768899657920,22.28408856,129.05,128.93,7.75586217]
[1768899657921,4.21188105,128.98,128.93,7.75586217]
[1768899658092,13.2854461,128.97,128.92,28.85720938]
[1768899658297,9.07356505,128.96,128.92,28.85720938]
[1768899659612,4.21188105,128.96,128.92,16.94]
[1768899659920,13.2854461,128.95,128.9,28.85822352]
[1768899660304,1.18345599,129.0,128.92,7.756283]
[1768899660506,7.75003187,129.04,128.92,7.756283]
[1768899660507,4.21188105,129.04,128.93,17.71561467]
[1768899660820,4.21188105,129.04,128.94,5.9565132]
[1768899661018,4.21188105,129.04,128.95,24.69494377]
[1768899661319,13.2854461,129.02,128.96,26.01356505]
[1768899661821,4.21188105,129.02,128.97,9.07356505]
[1768899662119,10.25702103,129.03,128.97,7.75337399]
[1768899662120,1.18345598,129.03,128.97,7.75337399]
[1768899662427,4.21188105,129.01,128.97,7.75337399]
[1768899662600,9.07356505,129.02,128.97,16.82693904]
[1768899662799,9.07356505,129.02,128.97,21.03882009]
[1768899663003,9.07356505,129.02,128.98,16.94]
[1768899663401,9.07356505,129.02,128.97,21.03882009]
[1768899663623,9.07356505,129.02,128.98,16.94]
[1768899664205,9.07356505,128.99,128.98,16.94]
[1768899664412,9.07356505,128.99,128.98,15.75654402]
[1768899664726,13.2854461,129.0,128.98,15.75654402]
[1768899665424,9.07356505,128.99,128.98,15.75654402]
[1768899665921,13.2854461,128.99,128.98,15.75654402]
[1768899666122,13.2854461,128.99,128.98,11.25654402]
[1768899666426,13.2854461,128.99,128.94,11.9672203]
[1768899666427,13.2854461,128.99,128.95,21.26129193]
[1768899666808,4.21188105,128.99,128.95,30.33485698]
[1768899667428,4.21188105,128.99,128.95,21.26129193]
[1768899669539,4.21188105,129.01,128.96,13.39485698]
[1768899670536,4.21188105,129.01,128.96,4.32129193]
[1768899670739,4.21188105,129.01,128.96,13.39485698]
[1768899671320,4.21188105,129.01,128.96,21.14914294]
[1768899671525,19.37533906,129.03,128.99,4.32129193]
[1768899671526,4.21188105,129.03,128.99,4.32129193]
[1768899671850,4.21188105,129.05,128.96,12.07557789]
[1768899672028,13.2854461,129.02,128.96,38.08914294]
[1768899672228,9.07356505,129.02,128.96,38.08914294]
[1768899672434,4.21188105,129.0,128.96,38.08914294]
[1768899673036,4.21188105,129.0,128.96,30.33485698]
[1768899673732,4.21188105,129.0,128.96,38.08918308]
[1768899674049,4.21188105,129.0,128.96,29.01561803]
[1768899674243,4.21188105,129.0,128.96,38.08918308]
[1768899674580,4.21188105,129.0,128.96,29.01561803]
[1768899674846,4.21188105,129.0,128.96,38.08918308]
[1768899675049,4.21188105,129.0,128.96,29.01561803]
[1768899675238,4.21188105,129.0,128.96,38.08918308]
[1768899677047,4.21188105,129.0,128.96,30.33485698]
[1768899677641,21.036476,129.02,128.97,9.07356505]
[1768899677848,4.21188105,129.02,128.98,13.39485698]
[1768899678358,4.21188105,129.02,128.99,9.07356505]
[1768899678649,11.96223062,129.03,128.99,13.39485698]
[1768899678854,11.96223062,129.03,128.99,4.32129193]
[1768899679150,11.96223062,129.03,128.99,13.39485698]
[1768899679355,11.96223062,129.03,128.99,4.32129193]
[1768899680757,21.03579567,129.03,128.99,4.32129193]
[1768899681858,11.96223062,129.03,128.99,4.32129193]
[1768899682156,4.21188105,129.0,128.95,12.07597768]
[1768899682335,4.21188105,129.0,128.96,16.94]
[1768899682535,4.21188105,129.0,128.96,21.26129193]
[1768899683456,4.20877796,128.97,128.91,4.44327631]
[1768899683659,4.20877796,128.99,128.94,13.51684136]
[1768899683948,4.20877796,128.99,128.95,9.07356505]
[1768899684462,4.20877796,128.99,128.96,9.07356505]
[1768899684654,4.20877796,128.98,128.94,4.44327631]
[1768899684957,4.20877796,128.98,128.95,9.07356505]
[1768899686958,4.20877796,128.98,128.95,9.0791758]
[1768899687548,4.20877796,128.98,128.94,4.44327631]
[1768899688044,4.20877796,128.98,128.95,9.0791758]
[1768899688658,4.20877796,129.0,128.96,13.52245211]
[1768899688865,4.20877796,129.01,128.98,9.0791758]
[1768899689039,4.20877796,129.01,128.99,9.0791758]
[1768899689361,4.20877796,129.01,128.97,4.44327631]
[1768899689657,4.20877796,129.01,128.99,9.0791758]
[1768899690760,4.20877796,129.01,128.98,9.0791758]
[1768899694458,4.20877796,129.01,128.99,9.0791758]
[1768899694759,4.20877796,129.01,128.98,13.52245211]
[1768899695250,4.20877796,129.01,128.96,4.44327631]
[1768899695650,4.20877796,129.01,128.97,9.0791758]
[1768899695948,4.20877796,129.01,128.96,12.19759077]
[1768899696148,4.20877796,129.01,128.97,13.52245211]
[1768899696552,4.20877796,129.01,128.97,4.44327631]
[1768899696764,4.20877796,129.01,128.97,13.52245211]
[1768899698156,4.20877796,129.01,128.97,4.44327631]
[1768899698357,4.20877796,129.01,128.97,13.52245211]
[1768899702143,4.20877796,129.01,128.98,9.0791758]
[1768899702840,4.20877796,129.01,128.98,13.52245211]
[1768899703651,11.96016921,129.01,128.97,4.46428225]
[1768899703841,4.32948284,129.0,128.96,4.46428225]
[1768899705061,4.32948284,128.99,128.95,13.54345805]
[1768899707647,4.32948284,128.99,128.83,23.23179053]
[1768899707648,4.32948284,128.95,128.9,4.46428225]
[1768899707852,4.32948284,128.93,128.89,13.54345805]
[1768899708557,4.32948284,128.93,128.89,4.46428225]
[1768899708756,4.32948284,128.93,128.89,13.54345805]
[1768899710151,4.32948284,128.93,128.9,9.0791758]
[1768899710877,4.32948284,128.93,128.9,3.70102132]
[1768899711671,4.32948284,128.94,128.91,3.70102132]
[1768899711854,4.32948284,128.94,128.89,4.46428225]
[1768899712047,4.32948284,128.94,128.9,3.70102132]
[1768899712654,4.32948284,128.94,128.89,4.46428225]
[1768899712860,4.32948284,128.94,128.9,3.70102132]
[1768899713249,4.47084521,128.93,128.89,4.46428225]
[1768899713453,4.47084521,128.9,128.87,4.35125805]
[1768899713650,4.47084521,128.9,128.87,0.2]
[1768899713963,4.3291888,128.9,128.87,0.2]
[1768899714858,4.3291888,128.9,128.87,4.35125805]
[1768899715255,5.34408856,128.86,128.82,0.2]
[1768899715449,44.11493831,128.89,128.82,0.2]
[1768899715656,3.70102132,128.86,128.82,0.2]
[1768899715959,12.2312472,128.86,128.82,3.90102132]
[1768899716268,4.47084521,128.84,128.82,0.2]
[1768899719364,4.47084521,128.85,128.82,0.2]
[1768899720270,12.23214361,128.85,128.82,0.2]
[1768899721257,4.47084521,128.84,128.82,0.2]
[1768899722059,4.47084521,128.84,128.79,0.2]
[1768899722258,4.47084521,128.84,128.79,8.05227937]
[1768899722259,4.47084521,128.83,128.79,8.05227937]
[1768899722580,4.47084521,128.82,128.79,0.2]
[1768899722778,4.47084521,128.82,128.79,3.90102132]
[1768899723671,4.47084521,128.83,128.8,3.70102132]
[1768899724777,4.47084521,128.85,128.81,3.70102132]
[1768899724979,4.47084521,128.85,128.83,3.70102132]
[1768899725680,12.23097503,128.87,128.84,3.70102132]
[1768899725881,4.47084521,128.87,128.83,4.15125805]
[1768899726077,4.47084521,128.87,128.83,7.85227937]
[1768899726883,4.47084521,128.86,128.81,4.15125805]
[1768899727098,4.47084521,128.86,128.82,3.70102132]
[1768899727385,4.47084521,128.86,128.82,7.85227937]
[1768899727881,12.23132133,128.86,128.82,4.15125805]
[1768899728687,12.23132133,128.86,128.82,7.85227937]
[1768899729086,4.47084521,128.85,128.81,7.85227937]
[1768899729286,4.47084521,128.81,128.79,0.2]
[1768899729989,7.76169155,128.84,128.8,7.85227937]
[1768899730186,7.76169155,128.84,128.81,3.70102132]
[1768899730368,12.23253676,128.84,128.8,7.85227937]
[1768899730688,4.47084521,128.83,128.8,7.85227937]
[1768899730921,4.47084521,128.86,128.82,7.85227937]
[1768899731200,16.96,128.87,128.79,0.2]
[1768899731201,4.47084521,128.82,128.79,0.2]
[1768899731372,8.17186653,128.82,128.79,0.2]
[1768899731804,12.23362419,128.82,128.79,0.2]
[1768899731981,15.93464551,128.82,128.79,0.2]
[1768899732309,12.23362419,128.82,128.79,0.2]
[1768899733502,4.47084521,128.81,128.79,0.2]
[1768899733700,4.47084521,128.79,128.75,8.05227937]
[1768899734650,8.17186653,128.8,128.76,4.15125805]
[1768899735184,8.1118665,128.8,128.76,4.15125805]
[1768899735492,4.47084521,128.8,128.76,4.15125805]
[1768899737297,8.17186653,128.8,128.76,4.15125805]
[1768899740292,29.19322759,128.83,128.77,4.15125805]
[1768899740619,8.17186653,128.82,128.77,4.15125805]
[1768899740829,8.17186653,128.82,128.78,4.15125805]
[1768899741530,4.47084521,128.82,128.78,4.15125805]
[1768899742017,8.17186653,128.82,128.78,4.15125805]
[1768899743520,4.21825435,128.79,128.75,4.50210336]
[1768899743821,4.15825435,128.79,128.76,4.30210336]
[1768899744015,7.76316983,128.82,128.76,4.30210336]
[1768899744215,3.70102132,128.8,128.76,4.30210336]
[1768899745204,3.70102132,128.81,128.76,4.30210336]
[1768899745615,19.40588543,128.83,128.76,4.30210336]
[1768899745916,7.91927567,128.8,128.76,4.30210336]
[1768899746422,7.91927567,128.8,128.76,12.06846716]
[1768899746594,7.91927567,128.8,128.76,4.30210336]
[1768899746796,4.21825435,128.8,128.76,4.30210336]
[1768899748925,7.9272352,128.8,128.76,4.30210336]
[1768899749295,4.21825435,128.8,128.76,4.30210336]
[1768899749512,7.9272352,128.8,128.76,4.30210336]
[1768899750329,4.21825435,128.8,128.76,12.06847482]
[1768899751428,7.9272352,128.82,128.78,4.30210336]
[1768899752824,7.9272352,128.83,128.78,4.30210336]
[1768899753133,4.21825435,128.82,128.78,4.30210336]
[1768899753642,7.9272352,128.84,128.79,4.30210336]
[1768899753822,4.21825435,128.83,128.79,4.30210336]
[1768899754137,7.9272352,128.83,128.79,4.30210336]
[1768899754437,4.21825435,128.83,128.79,4.30210336]
[1768899754642,7.9272352,128.83,128.79,4.30210336]
[1768899756837,4.21825435,128.85,128.79,4.30210336]
[1768899757037,45.16367377,128.9,128.84,8.01108421]
[1768899757038,4.21825435,128.89,128.84,8.01108421]
[1768899757342,4.21825435,128.89,128.85,4.30210336]
[1768899757647,4.21825435,128.89,128.85,4.27210342]
[1768899758037,11.97710256,128.89,128.85,4.27210342]
[1768899758348,4.21825435,128.9,128.86,3.70898085]
[1768899759250,4.21825435,128.9,128.87,3.70898085]
[1768899761249,4.21825435,128.9,128.86,4.30210336]
[1768899761544,4.21825435,128.89,128.86,3.70898085]
[1768899761722,4.21825435,128.89,128.85,8.01108421]
[1768899762152,4.21825435,128.88,128.84,4.30210336]
[1768899762331,4.21825435,128.88,128.84,8.01108421]
[1768899762750,4.21825435,128.88,128.85,4.30210336]
[1768899763052,4.38264419,128.89,128.85,4.30210336]
[1768899763955,8.09162504,128.89,128.85,4.30210336]
[1768899764250,4.38264419,128.89,128.85,4.30210336]
[1768899765356,12.1408953,128.9,128.86,4.23025812]
[1768899765651,8.09162504,128.88,128.81,4.23025812]
[1768899765853,4.38264419,128.81,128.77,4.23025812]
[1768899766033,3.70898085,128.8,128.77,4.23025812]
[1768899766430,8.02547151,128.81,128.77,4.23025812]
[1768899766644,4.31649066,128.81,128.77,4.23025812]
[1768899767156,3.70898085,128.84,128.79,4.23025812]
[1768899767731,3.70898085,128.85,128.8,4.23025812]
[1768899767954,8.09162504,128.85,128.8,4.23025812]
[1768899768154,15.85275028,128.85,128.8,4.23025812]
[1768899768534,3.70898085,128.84,128.8,4.23025812]
[1768899768937,9.10133313,128.84,128.8,4.23025812]
[1768899769550,12.14376943,128.85,128.78,4.23025812]
[1768899769551,13.48397732,128.83,128.78,4.23025812]
[1768899770157,4.38264419,128.83,128.78,4.23025812]
[1768899770851,12.14385197,128.85,128.8,4.23025812]
[1768899771054,16.86254091,128.85,128.8,4.23025812]
[1768899771245,4.38264419,128.84,128.8,4.23025812]
[1768899771950,12.14427187,128.84,128.8,4.23025812]
[1768899772542,21.245605,128.84,128.8,4.23025812]
[1768899772941,4.38264419,128.83,128.8,4.23025812]
[1768899773158,4.38264419,128.83,128.79,4.23025812]
[1768899774640,12.14486034,128.83,128.79,4.23025812]
[1768899775259,4.38264419,128.83,128.79,4.23025812]
[1768899777562,4.38264419,128.83,128.79,13.33159125]
[1768899777745,4.38264419,128.83,128.8,4.47726347]
[1768899778756,4.49202069,128.84,128.8,4.47726347]
[1768899780344,4.49202069,128.83,128.8,4.47726347]
[1768899780960,4.49202069,128.85,128.81,4.47726347]
[1768899781260,4.49202069,128.88,128.83,13.5785966]
[1768899781464,4.49202069,128.88,128.84,13.5785966]
[1768899781975,12.25117696,128.88,128.84,13.5785966]
[1768899782267,4.49202069,128.87,128.84,4.47726347]
[1768899786154,4.49202069,128.87,128.84,13.5785966]
[1768899786771,24.73942854,128.9,128.86,13.5785966]
[1768899786772,12.25018233,128.9,128.86,13.5785966]
[1768899786946,4.49202069,128.9,128.86,13.54859661]
[1768899787146,4.49202069,128.89,128.86,4.44726348]
[1768899787369,4.49202069,128.89,128.86,13.54859661]
[1768899787761,4.49202069,128.89,128.86,13.51859662]
[1768899788043,4.49202069,128.89,128.86,4.41726349]
[1768899789160,4.49202069,128.88,128.83,16.98]
[1768899789472,4.49202069,128.88,128.83,3.70300853]
[1768899789685,4.49202069,128.88,128.84,3.70300853]
[1768899790862,4.49202069,128.88,128.84,8.180272]
[1768899792198,4.49202069,128.88,128.84,4.47726347]
[1768899792400,4.49202069,128.88,128.84,8.180272]
[1768899792984,4.49202069,128.89,128.85,8.180272]
[1768899793374,4.49202069,128.88,128.85,8.180272]
[1768899794720,4.49202069,128.88,128.85,4.47726347]
[1768899795276,4.49202069,128.87,128.83,4.47726347]
[1768899795486,4.49202069,128.87,128.83,8.180272]
[1768899795695,4.49202069,128.87,128.83,4.47726347]
[1768899795901,3.70300853,128.85,128.8,4.47726347]
[1768899796286,4.49202069,128.84,128.8,4.47726347]
[1768899797000,12.25363073,128.84,128.8,4.47726347]
[1768899797696,4.49202069,128.83,128.8,4.47726347]
[1768899799090,12.25363073,128.84,128.8,4.47726347]
[1768899801106,4.49202069,128.83,128.78,4.47726347]
[1768899801280,4.49202069,128.83,128.77,16.96]
[1768899801281,4.49202069,128.81,128.77,21.43726347]
[1768899801682,4.49202069,128.78,128.75,4.67726347]
[1768899802228,4.49202069,128.8,128.75,8.380272]
[1768899803083,4.49202069,128.8,128.76,4.24370901]
[1768899804207,12.07029504,128.82,128.77,3.70300853]
[1768899804496,4.30739231,128.82,128.78,4.24370901]
[1768899804701,7.76243646,128.83,128.79,4.24370901]
[1768899804893,12.06982877,128.83,128.79,4.24370901]
[1768899805397,4.30739231,128.82,128.79,4.24370901]
[1768899805591,4.30739231,128.82,128.77,3.70300853]
[1768899805904,4.30739231,128.82,128.78,4.24370901]
[1768899806612,4.30739231,128.82,128.73,5.9565132]
[1768899806613,4.30739231,128.79,128.72,4.24370901]
[1768899806902,3.70300853,128.76,128.72,4.24370901]
[1768899807282,11.46964171,128.76,128.72,4.24370901]
[1768899808090,3.70300853,128.75,128.72,4.24370901]
[1768899808900,15.78564967,128.76,128.72,4.24370901]
[1768899811219,8.01901649,128.74,128.7,0.2]
[1768899811390,8.01901649,128.73,128.7,0.2]
[1768899811915,15.78740843,128.73,128.7,0.2]
[1768899812420,8.01901649,128.73,128.7,0.2]
[1768899812713,4.30739231,128.73,128.7,0.2]
[1768899813514,7.76836861,128.73,128.7,4.44370901]
[1768899814016,24.76212788,128.75,128.7,4.44370901]
[1768899814017,4.30739231,128.75,128.7,4.44370901]
[1768899814198,7.76638707,128.76,128.72,4.24370901]
[1768899814407,12.07377938,128.76,128.72,4.24370901]
[1768899814818,15.78540356,128.76,128.72,4.24370901]
[1768899815117,4.30739231,128.75,128.7,4.44370901]
[1768899815425,7.95901649,128.75,128.71,4.24370901]
[1768899815725,3.71162418,128.75,128.7,0.2]
[1768899815924,3.71162418,128.75,128.7,4.44370901]
[1768899816214,11.47888305,128.75,128.7,4.44370901]
[1768899816898,7.76725887,128.75,128.71,4.24370901]
[1768899817421,11.47827747,128.76,128.71,4.24370901]
[1768899817920,15.78566978,128.76,128.71,4.24370901]
[1768899818519,12.0740456,128.76,128.71,4.24370901]
[1768899818817,11.47744654,128.77,128.72,4.24370901]
[1768899819016,7.76582236,128.77,128.72,4.24370901]
[1768899819317,27.43302476,128.78,128.72,4.24370901]
[1768899819318,11.47691864,128.78,128.72,3.71162418]
[1768899819518,11.47691864,128.78,128.73,4.24370901]
[1768899820014,15.78431095,128.78,128.73,4.24370901]
[1768899820417,3.71162418,128.77,128.73,4.24370901]
[1768899821414,12.07268677,128.78,128.73,4.24370901]
[1768899821623,3.71162418,128.77,128.73,4.24370901]
[1768899822915,31.48563909,128.78,128.73,4.24370901]
[1768899823125,4.30739231,128.78,128.73,4.24370901]
[1768899823899,15.77910455,128.79,128.73,4.24370901]
[1768899824110,11.47643336,128.79,128.74,4.2100188]
[1768899824903,3.71162418,128.79,128.74,4.2100188]
[1768899825224,3.71162418,128.83,128.78,4.2100188]
[1768899825420,7.76276975,128.82,128.78,4.2100188]
[1768899825605,12.06504712,128.83,128.79,4.2100188]
[1768899827404,15.77630466,128.84,128.79,4.2100188]
[1768899827610,7.76200929,128.84,128.8,4.2100188]
[1768899828120,12.0638521,128.85,128.8,4.2100188]
[1768899828798,12.0638521,128.85,128.8,7.92164298]
[1768899829320,12.0638521,128.85,128.81,4.2100188]
[1768899830427,11.47280509,128.85,128.8,4.2100188]
[1768899830618,3.71162418,128.84,128.78,4.2100188]
[1768899830923,8.01429537,128.84,128.79,4.2100188]
[1768899833222,15.77622019,128.84,128.79,4.2100188]
[1768899834420,12.06459601,128.84,128.79,4.2100188]
[1768899834729,15.77622019,128.84,128.79,4.2100188]
[1768899835221,12.06459601,128.84,128.8,4.16235455]
[1768899835426,4.30267119,128.84,128.8,7.87397873]
[1768899835624,11.83237572,128.85,128.81,4.16235455]
[1768899837816,15.5439999,128.85,128.81,4.16235455]
[1768899840627,34.94640579,128.85,128.81,4.16235455]
[1768899841330,4.07117106,128.82,128.79,4.16235455]
[1768899842327,7.78279524,128.83,128.79,4.16235455]
[1768899844914,3.71162418,128.83,128.79,4.16235455]
[1768899845115,15.54490265,128.84,128.79,4.16235455]
[1768899848332,11.83327847,128.84,128.8,4.16235455]
[1768899848728,4.07117106,128.86,128.81,4.16235455]
[1768899848925,7.78279524,128.83,128.79,4.16235455]
[1768899849131,7.76060203,128.86,128.77,4.16235455]
[1768899849132,7.78279524,128.81,128.77,4.16235455]
[1768899849326,4.07117106,128.81,128.77,4.16235455]
[1768899849543,7.78279524,128.81,128.77,4.16235455]
[1768899851645,4.07117106,128.81,128.77,4.16235455]
[1768899851942,7.78279524,128.81,128.77,4.16235455]
[1768899853148,4.07117106,128.81,128.77,4.16235455]
[1768899853344,7.78279524,128.81,128.77,4.16235455]
[1768899856935,19.40542319,128.83,128.76,4.16235455]
[1768899856936,7.78279524,128.8,128.76,4.16235455]
[1768899857742,4.07117106,128.8,128.76,4.16235455]
[1768899857950,4.07117106,128.8,128.76,7.76632752]
[1768899858151,4.07117106,128.8,128.77,4.16235455]
[1768899860457,4.07117106,128.8,128.76,4.16235455]
[1768899861565,7.78279524,128.82,128.78,4.16235455]
[1768899862461,15.54560084,128.82,128.78,4.16235455]
[1768899862662,15.54560084,128.82,128.72,4.16235455]
[1768899862663,9.05571274,128.79,128.72,4.16235455]
[1768899862846,3.71162418,128.77,128.72,4.16235455]
[1768899863963,12.2077705,128.78,128.73,4.34635216]
[1768899864263,3.71162418,128.77,128.73,4.34635216]
[1768899864448,12.2077705,128.78,128.73,4.34635216]
[1768899864637,8.15386977,128.76,128.73,4.34635216]
[1768899864841,8.15386977,128.76,128.71,4.34635216]
[1768899865770,3.71162418,128.75,128.71,4.34635216]
[1768899865966,3.71162418,128.74,128.71,4.34635216]
[1768899866174,3.71162418,128.73,128.7,4.54635216]
[1768899868877,8.15386977,128.74,128.7,4.54635216]
[1768899869483,3.71162418,128.73,128.7,4.54635216]
[1768899869798,3.71162418,128.74,128.7,4.54635216]
[1768899870866,12.20947476,128.75,128.7,4.54635216]
[1768899871066,3.71229296,128.74,128.7,4.54635216]
[1768899872674,4.44224559,128.75,128.7,4.54635216]
[1768899872876,4.44224559,128.76,128.72,4.34635216]
[1768899873069,3.71229296,128.75,128.72,4.34635216]
[1768899873265,3.71229296,128.74,128.72,4.34635216]
[1768899873469,3.71229296,128.73,128.71,4.34635216]
[1768899873683,3.65229294,128.73,128.71,4.34635216]
[1768899873884,4.44224559,128.75,128.71,4.34635216]
[1768899874089,3.71229296,128.74,128.71,4.34635216]
[1768899880177,4.44224559,128.75,128.71,4.34635216]
[1768899880377,3.71229296,128.74,128.71,4.34635216]
[1768899880872,4.44224559,128.75,128.71,4.34635216]
[1768899881082,8.15453855,128.75,128.71,4.34635216]
[1768899883494,3.71229296,128.74,128.71,4.34635216]
[1768899886499,8.15453855,128.75,128.71,4.34635216]
[1768899890279,7.92273048,128.74,128.71,4.34635216]
[1768899890777,4.21043752,128.74,128.71,4.34635216]
[1768899890978,7.92273048,128.74,128.71,4.34635216]
[1768899893099,4.21043752,128.74,128.71,4.34635216]
[1768899893308,7.92273048,128.74,128.71,4.34635216]
[1768899893804,8.04074406,128.75,128.71,4.34635216]
[1768899894290,3.71229296,128.74,128.71,4.34635216]
[1768899894599,4.3284511,128.75,128.71,4.34635216]
[1768899894902,3.71229296,128.74,128.71,4.34635216]
[1768899896377,8.04074406,128.75,128.71,4.34635216]
[1768899897007,4.3284511,128.75,128.71,4.34635216]
[1768899897205,8.04074406,128.75,128.71,4.34635216]
[1768899900608,17.15490568,128.88,128.73,4.18684052]
[1768899900609,14.6172973,128.81,128.73,4.18684052]
[1768899900799,4.3284511,128.82,128.77,4.18684052]
[1768899900999,8.04074406,128.83,128.78,4.18684052]
[1768899901204,4.3284511,128.82,128.78,4.18684052]
[1768899901404,4.3284511,128.83,128.79,4.18684052]
[1768899901614,3.71229296,128.84,128.79,3.71229296]
[1768899901615,4.3284511,128.84,128.79,3.71229296]
[1768899902099,4.3284511,128.83,128.78,3.71229296]